bitfinex/quotes_BTCUSD_20240723
["timestamp","ask_amount","ask_price","bid_price","bid_amount"]
[1721776046345,1.13339969,66118.0,66117.0,0.02610597]
[1721776046559,1.14539969,66118.0,66117.0,0.02610597]
[1721776047183,1.14539969,66118.0,66117.0,0.09959539]
[1721776047391,1.1332418,66118.0,66117.0,0.19959539]
[1721776047597,1.1332418,66118.0,66117.0,0.09959539]
[1721776047803,1.1282418,66118.0,66117.0,0.09959539]
[1721776048222,1.1422418,66118.0,66117.0,0.09959539]
[1721776048472,0.09104532,66118.0,66117.0,0.34449539]
[1721776048678,0.153244,66118.0,66117.0,0.34449539]
[1721776048885,0.467733,66118.0,66117.0,0.34449539]
[1721776049299,0.453733,66118.0,66117.0,0.34449539]
[1721776049478,0.756222,66118.0,66117.0,0.34449539]
[1721776049679,0.775222,66118.0,66117.0,0.34449539]
[1721776049880,0.763222,66118.0,66117.0,0.24449539]
[1721776050084,1.065711,66118.0,66117.0,0.20520597]
[1721776050218,1.068711,66118.0,66117.0,0.20520597]
[1721776050421,1.068711,66118.0,66117.0,0.12610597]
[1721776050619,1.14811749,66118.0,66117.0,0.12610597]
[1721776050820,1.14111749,66118.0,66117.0,0.12610597]
[1721776051249,0.84462849,66118.0,66117.0,0.12610597]
[1721776051449,0.762222,66118.0,66117.0,0.12610597]
[1721776051649,0.756222,66118.0,66117.0,0.12610597]
[1721776051858,0.760222,66118.0,66117.0,0.12610597]
[1721776052146,0.762222,66118.0,66117.0,0.12610597]
[1721776052352,0.760222,66118.0,66117.0,0.12610597]
[1721776052555,0.756222,66118.0,66117.0,0.12610597]
[1721776052760,0.762222,66118.0,66117.0,0.12610597]
[1721776052967,0.774222,66118.0,66117.0,0.02610597]
[1721776053166,0.774222,66118.0,66117.0,0.12610597]
[1721776053167,1.064711,66118.0,66117.0,0.12610597]
[1721776053391,1.076711,66118.0,66117.0,0.12610597]
[1721776054252,0.774222,66118.0,66117.0,0.12610597]
[1721776054688,0.768222,66118.0,66117.0,0.12610597]
[1721776054876,0.756222,66118.0,66117.0,0.12610597]
[1721776055079,0.782222,66118.0,66117.0,0.12610597]
[1721776055500,0.770222,66118.0,66117.0,0.12610597]
[1721776055826,0.782222,66118.0,66117.0,0.12610597]
[1721776057186,0.768222,66118.0,66117.0,0.12610597]
[1721776057730,0.777222,66118.0,66117.0,0.12610597]
[1721776057932,0.765222,66118.0,66117.0,0.12610597]
[1721776058079,0.772222,66118.0,66117.0,0.12610597]
[1721776060670,0.8524489,66118.0,66117.0,0.12610597]
[1721776063646,0.85233512,66118.0,66117.0,0.12610597]
[1721776065115,0.84333512,66118.0,66117.0,0.12610597]
[1721776065521,0.83633512,66118.0,66117.0,0.12610597]
[1721776066101,0.84233512,66118.0,66117.0,0.12610597]
[1721776066306,0.84533512,66118.0,66117.0,0.12610597]
[1721776067081,0.84521509,66118.0,66117.0,0.12610597]
[1721776067571,1.14770409,66118.0,66117.0,0.12610597]
[1721776067778,1.14770409,66118.0,66117.0,0.02610597]
[1721776068163,1.14770409,66118.0,66117.0,0.19959539]
[1721776068704,1.14770409,66118.0,66117.0,0.09959539]
[1721776068907,1.14770409,66118.0,66117.0,0.19959539]
[1721776069878,1.14770409,66118.0,66117.0,0.12610597]
[1721776070081,1.14770409,66118.0,66117.0,0.02610597]
[1721776070286,1.067711,66118.0,66117.0,0.12610597]
[1721776070419,1.14696565,66118.0,66117.0,0.12610597]
[1721776070851,1.14696565,66118.0,66117.0,0.02610597]
[1721776071088,1.14696565,66118.0,66117.0,0.12610597]
[1721776071415,1.14696565,66118.0,66117.0,0.19959539]
[1721776072516,1.25952047,66118.0,66117.0,0.19959539]
[1721776073233,1.25952047,66118.0,66117.0,0.02610597]
[1721776073409,1.25952047,66118.0,66117.0,0.000924]
[1721776073709,1.25982273,66118.0,66117.0,0.02610597]
[1721776074900,1.25982273,66118.0,66117.0,0.19959539]
[1721776076192,1.25982273,66118.0,66117.0,0.09959539]
[1721776076367,1.25982273,66118.0,66117.0,0.19959539]
[1721776077076,1.25976206,66118.0,66117.0,0.19959539]
[1721776077839,1.25976206,66118.0,66117.0,0.02610597]
[1721776078036,1.26060206,66118.0,66117.0,0.12610597]
[1721776078237,1.26060206,66118.0,66117.0,0.000924]
[1721776078662,1.40762197,66118.0,66117.0,0.000924]
[1721776079484,1.40743995,66118.0,66117.0,0.000924]
[1721776080299,1.21538889,66118.0,66117.0,0.000924]
[1721776080466,1.38362179,66118.0,66117.0,0.000924]
[1721776080788,1.38362179,66118.0,66117.0,0.050924]
[1721776080965,1.2825384,66118.0,66117.0,0.050924]
[1721776081381,1.13551849,66118.0,66117.0,0.12610597]
[1721776081590,1.13551849,66118.0,66117.0,0.02610597]
[1721776081788,1.13551849,66118.0,66117.0,0.12610597]
[1721776083519,1.06836898,66118.0,66117.0,0.02610597]
[1721776083719,1.12656659,66118.0,66117.0,0.02610597]
[1721776087148,1.50713232,66118.0,66117.0,0.000924]
[1721776087523,1.87182132,66118.0,66117.0,0.000924]
[1721776088180,1.89172132,66118.0,66117.0,0.000924]
[1721776088348,1.94172132,66118.0,66117.0,0.000924]
[1721776088547,1.93272132,66118.0,66117.0,0.000924]
[1721776088746,1.94672132,66118.0,66117.0,0.000924]
[1721776088909,2.26321032,66118.0,66117.0,0.000924]
[1721776089113,1.98553935,66118.0,66117.0,0.000924]
[1721776089547,2.28802835,66118.0,66117.0,0.000924]
[1721776090175,2.13918988,66118.0,66117.0,0.000924]
[1721776090372,2.29479989,66118.0,66117.0,0.000924]
[1721776090572,2.33271696,66118.0,66117.0,0.000924]
[1721776090801,2.31871696,66118.0,66117.0,0.000924]
[1721776090975,2.30471696,66118.0,66117.0,0.000924]
[1721776091153,2.33271696,66118.0,66117.0,0.000924]
[1721776091352,2.29479989,66118.0,66117.0,0.000924]
[1721776091614,2.28079989,66118.0,66117.0,0.000924]
[1721776091809,2.29479989,66118.0,66117.0,0.000924]
[1721776092025,2.15189493,66118.0,66117.0,0.000924]
[1721776092193,1.7775008,66118.0,66117.0,0.000924]
[1721776092393,1.7424879,66118.0,66117.0,0.000924]
[1721776093010,2.0449769,66118.0,66117.0,0.000924]
[1721776093204,1.7424879,66118.0,66117.0,0.000924]
[1721776093415,1.73384054,66118.0,66117.0,0.000924]
[1721776093619,2.21049412,66118.0,66117.0,0.000924]
[1721776094953,2.29801215,66118.0,66117.0,0.000924]
[1721776095656,2.60050115,66118.0,66117.0,0.000924]
[1721776096091,2.59979576,66118.0,66117.0,0.000924]
[1721776096296,2.58579576,66118.0,66117.0,0.000924]
[1721776096504,2.59979576,66118.0,66117.0,0.000924]
[1721776096713,2.44623657,66118.0,66117.0,0.000924]
[1721776096914,2.59970772,66118.0,66117.0,0.000924]
[1721776097113,2.69970772,66118.0,66117.0,0.000924]
[1721776097871,2.77427203,66112.0,66111.0,0.000913]
[1721776097995,3.07476309,66112.0,66111.0,0.000913]
[1721776098189,3.12476309,66112.0,66111.0,0.000913]
[1721776099243,3.13876309,66112.0,66111.0,0.000913]
[1721776099842,3.15276309,66112.0,66111.0,0.000913]
[1721776100046,3.15231904,66112.0,66111.0,0.000913]
[1721776100253,3.29928169,66112.0,66111.0,0.000913]
[1721776101982,3.28528169,66112.0,66111.0,0.000913]
[1721776102340,3.29928169,66112.0,66111.0,0.000913]
[1721776102545,3.28528169,66112.0,66111.0,0.000913]
[1721776102945,3.29928169,66112.0,66111.0,0.000913]
[1721776103371,3.28404415,66112.0,66111.0,0.000913]
[1721776103727,3.29804415,66112.0,66111.0,0.000913]
[1721776104149,3.27004415,66112.0,66111.0,0.000913]
[1721776104422,3.29804415,66112.0,66111.0,0.000913]
[1721776105607,3.39804415,66112.0,66111.0,0.000913]
[1721776106036,3.2510815,66112.0,66111.0,0.000913]
[1721776106757,3.19261636,66112.0,66111.0,0.000913]
[1721776107038,3.25160659,66112.0,66111.0,0.000913]
[1721776107643,3.27460659,66112.0,66111.0,0.000913]
[1721776108780,3.28365068,66112.0,66111.0,0.000913]
[1721776109006,3.43061333,66112.0,66111.0,0.000913]
[1721776109439,3.41661333,66112.0,66111.0,0.000913]
[1721776109642,3.40261333,66112.0,66111.0,0.000913]
[1721776110175,3.41709885,66112.0,66111.0,0.000913]
[1721776110380,3.41700215,66112.0,66111.0,0.000913]
[1721776110531,3.40300215,66112.0,66111.0,0.000913]
[1721776110738,3.41700215,66112.0,66111.0,0.000913]
[1721776110944,3.43100215,66112.0,66111.0,0.000913]
[1721776111549,3.41700215,66112.0,66111.0,0.000913]
[1721776112195,3.43100215,66112.0,66111.0,0.000913]
[1721776113032,3.44500215,66112.0,66111.0,0.000913]
[1721776113439,3.44491357,66112.0,66111.0,0.000913]
[1721776114398,3.60431357,66112.0,66111.0,0.000913]
[1721776114600,3.64200105,66112.0,66111.0,0.000913]
[1721776115292,3.64201044,66112.0,66111.0,0.000913]
[1721776115577,3.61401044,66112.0,66111.0,0.000913]
[1721776115784,3.62801044,66112.0,66111.0,0.000913]
[1721776115947,3.61401044,66112.0,66111.0,0.000913]
[1721776116143,3.62801044,66112.0,66111.0,0.000913]
[1721776117534,3.59032296,66112.0,66111.0,0.000913]
[1721776120185,3.51732235,66112.0,66111.0,0.000913]
[1721776120421,3.56262446,66112.0,66111.0,0.000913]
[1721776120625,3.20184929,66112.0,66111.0,0.000913]
[1721776120827,3.17816181,66112.0,66111.0,0.000913]
[1721776121075,3.16416181,66112.0,66111.0,0.000913]
[1721776121270,3.22106181,66112.0,66111.0,0.000913]
[1721776121644,3.20116181,66112.0,66111.0,0.000913]
[1721776121875,3.33412446,66112.0,66111.0,0.000913]
[1721776122186,3.34812446,66112.0,66111.0,0.000913]
[1721776123308,3.19519868,66112.0,66111.0,0.000913]
[1721776123509,3.34858637,66112.0,66111.0,0.000913]
[1721776123940,3.32558637,66112.0,66111.0,0.000913]
[1721776124351,3.17862372,66112.0,66111.0,0.000913]
[1721776126655,3.17858877,66112.0,66111.0,0.000913]
[1721776126886,1.77355677,66112.0,66111.0,0.13640242]
[1721776127759,1.77355677,66112.0,66111.0,0.062913]
[1721776127995,1.74555677,66112.0,66111.0,0.062913]
[1721776128395,1.77355677,66112.0,66111.0,0.062913]
[1721776128850,2.20903542,66112.0,66111.0,0.000913]
[1721776129075,2.22303542,66112.0,66111.0,0.000913]
[1721776129712,2.24675315,66112.0,66111.0,0.000913]
[1721776129922,2.24740924,66112.0,66111.0,0.000913]
[1721776132405,2.24740924,66112.0,66102.0,0.081894]
[1721776132406,0.02481803,66103.0,66102.0,0.081894]
[1721776132608,1.08224177,66103.0,66102.0,0.0791]
[1721776132780,1.38479977,66103.0,66102.0,0.0791]
[1721776133078,1.73735777,66103.0,66102.0,0.0791]
[1721776133319,1.73629949,66103.0,66102.0,0.0791]
[1721776133724,1.75029949,66103.0,66102.0,0.0791]
[1721776134998,1.76429949,66103.0,66102.0,0.0791]
[1721776135580,1.38636903,66101.0,66087.0,0.05]
[1721776135789,1.68633949,66101.0,66098.0,0.0799]
[1721776136443,1.83595594,66101.0,66098.0,0.0799]
[1721776136621,1.9893815,66101.0,66098.0,0.0799]
[1721776136825,2.10330084,66101.0,66098.0,0.0799]
[1721776137049,2.11730084,66101.0,66098.0,0.0799]
[1721776137298,2.10330084,66101.0,66098.0,0.0799]
[1721776137657,2.11730084,66101.0,66098.0,0.0799]
[1721776138535,2.13130084,66101.0,66098.0,0.0799]
[1721776139472,2.81730084,66101.0,66088.0,0.07348942]
[1721776139671,3.24286784,66101.0,66100.0,41.62379336]
[1721776140278,3.1289485,66101.0,66100.0,41.62379336]
[1721776140482,3.1149485,66101.0,66100.0,41.62379336]
[1721776140691,3.1289485,66101.0,66100.0,41.62379336]
[1721776141111,3.1429485,66101.0,66100.0,41.62379336]
[1721776141557,3.1289485,66101.0,66100.0,41.62379336]
[1721776141881,3.1429485,66101.0,66100.0,41.62379336]
[1721776143059,3.1199485,66101.0,66100.0,41.76409336]
[1721776143321,2.36867396,66101.0,66100.0,41.76409336]
[1721776145100,3.06867396,66101.0,66100.0,41.76409336]
[1721776145483,2.36867396,66101.0,66100.0,41.76409336]
[1721776145882,2.47584107,66101.0,66100.0,41.76409336]
[1721776146081,2.06610696,66101.0,66100.0,41.76409336]
[1721776146624,2.07100781,66101.0,66100.0,41.76409336]
[1721776148317,1.34105578,66101.0,66100.0,41.81409336]
[1721776148516,1.26980882,66101.0,66100.0,41.81409336]
[1721776148980,1.26980882,66101.0,66100.0,41.76409336]
[1721776149406,1.43001063,66101.0,66100.0,41.76409336]
[1721776149612,1.50205522,66101.0,66100.0,41.76409336]
[1721776149812,1.80462222,66101.0,66100.0,41.76409336]
[1721776150284,1.66923844,66101.0,66100.0,41.76409336]
[1721776150422,1.65523844,66101.0,66100.0,41.76409336]
[1721776151059,1.66923844,66101.0,66100.0,41.76409336]
[1721776151558,0.96765187,66101.0,66100.0,41.90129336]
[1721776151770,0.96765187,66101.0,66100.0,41.81409336]
[1721776152001,0.96765187,66101.0,66100.0,41.83927533]
[1721776152175,0.21549796,66101.0,66100.0,41.88927533]
[1721776152596,0.46785,66101.0,66100.0,41.88927533]
[1721776153887,0.51278043,66101.0,66100.0,41.88927533]
[1721776154123,0.48185,66101.0,66100.0,41.88927533]
[1721776154334,0.48478054,66101.0,66100.0,41.88927533]
[1721776154562,0.96236745,66101.0,66100.0,41.81409336]
[1721776154953,1.3611712,66101.0,66100.0,41.76409336]
[1721776155186,1.3751712,66101.0,66100.0,41.76409336]
[1721776155706,1.27893445,66101.0,66100.0,41.76409336]
[1721776156110,1.27784401,66101.0,66100.0,41.76409336]
[1721776157667,1.60522904,66101.0,66100.0,41.76409336]
[1721776157864,1.65522904,66101.0,66100.0,41.76409336]
[1721776159390,1.62538894,66101.0,66100.0,41.76409336]
[1721776159599,1.65514374,66101.0,66100.0,41.76409336]
[1721776160438,1.80047047,66101.0,66100.0,41.76409336]
[1721776160841,1.65514374,66101.0,66100.0,41.76409336]
[1721776161587,1.7203464,66101.0,66100.0,41.62379336]
[1721776162586,2.10831301,66101.0,66100.0,41.62379336]
[1721776162835,2.20831301,66101.0,66100.0,41.62379336]
[1721776163649,2.19431301,66101.0,66100.0,41.62379336]
[1721776163853,2.34127566,66101.0,66100.0,41.62379336]
[1721776164053,2.78924266,66101.0,66100.0,41.59015691]
[1721776164283,2.8448095,66101.0,66100.0,41.59015691]
[1721776164869,2.8448095,66101.0,66100.0,41.52734136]
[1721776165093,2.80324266,66101.0,66100.0,41.51472736]
[1721776165262,2.69784685,66101.0,66100.0,41.51472736]
[1721776165676,2.65628001,66101.0,66100.0,41.51472736]
[1721776165929,2.68014178,66101.0,66100.0,41.51472736]
[1721776166128,2.69414178,66101.0,66100.0,41.51472736]
[1721776166421,2.69414226,66101.0,66100.0,41.47668132]
[1721776166570,2.82710491,66101.0,66100.0,41.47668132]
[1721776166988,2.88267175,66101.0,66100.0,41.47668132]
[1721776167728,2.86867175,66101.0,66100.0,41.47668132]
[1721776168165,2.88267175,66101.0,66100.0,41.47668132]
[1721776168355,2.86867175,66101.0,66100.0,41.47668132]
[1721776168787,2.84110491,66101.0,66100.0,41.47668132]
[1721776169352,2.80155972,66101.0,66100.0,41.47668132]
[1721776170188,2.80155972,66101.0,66100.0,40.47402052]
[1721776170512,2.89494038,66101.0,66100.0,40.36986516]
[1721776170720,2.93650722,66101.0,66100.0,40.36986516]
[1721776171120,2.92250722,66101.0,66100.0,40.36986516]
[1721776171322,2.90850722,66101.0,66100.0,40.36986516]
[1721776171521,2.93650722,66101.0,66100.0,40.29770516]
[1721776172592,2.9077335,66101.0,66100.0,40.29770516]
[1721776173041,2.87379803,66101.0,66100.0,40.29770516]
[1721776173410,2.87379803,66101.0,66100.0,39.44050516]
[1721776173965,2.9077335,66101.0,66100.0,39.44050516]
[1721776174156,2.87379803,66101.0,66100.0,39.44050516]
[1721776174353,2.87379803,66101.0,66100.0,39.43150516]
[1721776174568,2.87463803,66101.0,66100.0,39.43150516]
[1721776176080,2.87437246,66101.0,66100.0,39.43150516]
[1721776177742,2.79326043,66101.0,66100.0,39.43150516]
[1721776177944,2.83482727,66101.0,66100.0,39.43150516]
[1721776178344,2.79326043,66101.0,66100.0,39.43150516]
[1721776179150,2.73052559,66101.0,66100.0,39.43150516]
[1721776179272,2.7800379,66101.0,66100.0,39.43150516]
[1721776179473,2.79301127,66101.0,66100.0,39.43150516]
[1721776180232,2.73052559,66101.0,66100.0,39.43150516]
[1721776180433,2.79288228,66101.0,66100.0,39.38908869]
[1721776181411,2.79288228,66101.0,66100.0,38.80568041]
[1721776181412,3.54930028,66101.0,66100.0,38.80568041]
[1721776181613,3.58323575,66101.0,66100.0,38.50888982]
[1721776181822,3.62406927,66101.0,66100.0,38.50888982]
[1721776182239,3.65163611,66101.0,66100.0,38.48588982]
[1721776182372,3.65163611,66101.0,66100.0,38.45563282]
[1721776182579,3.65163611,66101.0,66100.0,38.34111882]
[1721776182775,3.66678268,66101.0,66100.0,38.28060482]
[1721776182982,3.60484721,66101.0,66100.0,38.28060482]
[1721776183176,3.63284721,66101.0,66100.0,38.28060482]
[1721776183454,3.63284721,66101.0,66100.0,38.25034782]
[1721776183660,3.63284721,66101.0,66100.0,38.18983382]
[1721776183859,3.63284721,66101.0,66100.0,38.12931982]
[1721776184693,3.60484721,66101.0,66100.0,37.97803482]
[1721776184931,3.61884721,66101.0,66100.0,37.97803482]
[1721776185134,3.63284721,66101.0,66100.0,37.97803482]
[1721776185552,3.63284721,66101.0,66100.0,37.91752082]
[1721776186170,3.63150539,66101.0,66100.0,37.82674982]
[1721776186574,3.63150539,66101.0,66100.0,37.79649282]
[1721776186787,3.63150539,66101.0,66100.0,37.73597882]
[1721776186987,3.54910503,66101.0,66100.0,37.59380677]
[1721776187187,3.58993855,66101.0,66100.0,37.59380677]
[1721776187727,3.58993855,66101.0,66100.0,37.53329277]
[1721776187930,3.63150539,66101.0,66100.0,37.47277877]
[1721776188129,3.63150539,66101.0,66100.0,37.44252177]
[1721776188534,3.63150539,66101.0,66100.0,37.33975521]
[1721776188762,3.63150539,66101.0,66100.0,37.27044121]
[1721776189126,3.63150539,66101.0,66100.0,37.20489121]
[1721776189844,3.63246321,66101.0,66100.0,37.17463421]
[1721776190213,3.55006285,66101.0,66100.0,36.99812621]
[1721776190418,3.55006285,66101.0,66100.0,36.96786921]
[1721776190630,3.55006285,66101.0,66100.0,36.90735521]
[1721776191550,3.55006285,66101.0,66100.0,36.65779608]
[1721776191948,3.59162969,66101.0,66100.0,36.65779608]
[1721776194616,3.55006285,66101.0,66100.0,36.65779608]
[1721776195617,3.61072085,66101.0,66100.0,36.65779608]
[1721776196182,3.61003485,66101.0,66100.0,36.65779608]
[1721776198690,3.61003485,66101.0,66100.0,36.64868787]
[1721776199590,3.61001166,66101.0,66100.0,36.64868787]
[1721776200596,3.61001166,66101.0,66100.0,36.61215279]
[1721776201701,3.52621166,66101.0,66100.0,36.61215279]
[1721776203076,3.5265485,66101.0,66100.0,36.61215279]
[1721776203283,3.22018585,66101.0,66100.0,36.61215279]
[1721776203491,4.19718585,66101.0,66100.0,36.61215279]
[1721776203701,3.19718585,66101.0,66100.0,36.75525279]
[1721776203879,4.19718585,66101.0,66100.0,36.75525279]
[1721776204117,4.3441485,66101.0,66100.0,36.75525279]
[1721776204321,4.3441485,66101.0,66100.0,36.61215279]
[1721776204745,4.3301485,66101.0,66100.0,36.61215279]
[1721776204944,4.3161485,66101.0,66100.0,36.61215279]
[1721776205152,4.3671485,66101.0,66100.0,36.61215279]
[1721776205407,4.3531485,66101.0,66100.0,36.61215279]
[1721776205891,4.3391485,66101.0,66100.0,36.61215279]
[1721776206031,4.3531485,66101.0,66100.0,36.61215279]
[1721776206405,4.35139572,66101.0,66100.0,36.61215279]
[1721776206889,4.36539572,66101.0,66100.0,36.61215279]
[1721776207180,4.35139572,66101.0,66100.0,36.61215279]
[1721776207813,4.36539572,66101.0,66100.0,36.61215279]
[1721776208197,4.33739572,66101.0,66100.0,36.61215279]
[1721776208404,4.36539572,66101.0,66100.0,36.61215279]
[1721776208967,4.35139572,66101.0,66100.0,36.54677672]
[1721776209330,4.33739572,66101.0,66100.0,36.54677672]
[1721776209534,4.33693781,66101.0,66100.0,36.54677672]
[1721776209706,4.35093781,66101.0,66100.0,36.54677672]
[1721776210235,4.36493781,66101.0,66100.0,36.54677672]
[1721776210808,4.35093781,66101.0,66100.0,36.54677672]
[1721776210994,4.36493781,66101.0,66100.0,36.54677672]
[1721776211194,4.37893781,66101.0,66100.0,36.54677672]
[1721776211438,4.35093781,66101.0,66100.0,36.54677672]
[1721776211641,4.36493781,66101.0,66100.0,36.54677672]
[1721776212129,4.33693781,66101.0,66100.0,36.54677672]
[1721776212340,4.35093781,66101.0,66100.0,36.54677672]
[1721776212819,4.37466546,66101.0,66100.0,36.54677672]
[1721776213026,4.38866546,66101.0,66100.0,36.54677672]
[1721776213411,4.40266546,66101.0,66100.0,36.54677672]
[1721776213987,4.38866546,66101.0,66100.0,36.54677672]
[1721776214172,4.40266546,66101.0,66100.0,36.54677672]
[1721776214940,4.37466546,66101.0,66100.0,36.54677672]
[1721776215367,4.38866546,66101.0,66100.0,36.54677672]
[1721776215571,4.37466546,66101.0,66100.0,36.53313773]
[1721776215774,4.38866546,66101.0,66100.0,36.53313773]
[1721776216045,4.37466546,66101.0,66100.0,36.53313773]
[1721776216269,4.3792953,66101.0,66100.0,36.53313773]
[1721776216773,4.3932953,66101.0,66100.0,36.53313773]
[1721776216892,4.4072953,66101.0,66100.0,36.53313773]
[1721776217694,4.3932953,66101.0,66100.0,36.53313773]
[1721776217900,4.4072953,66101.0,66100.0,36.53313773]
[1721776218107,4.3792953,66101.0,66100.0,36.53313773]
[1721776219013,4.5386953,66101.0,66100.0,36.44194627]
[1721776219186,4.5246953,66101.0,66100.0,36.41983627]
[1721776219400,4.5386953,66101.0,66100.0,36.41983627]
[1721776219598,4.54551006,66101.0,66100.0,36.41983627]
[1721776220174,4.54551006,66101.0,66100.0,36.34446411]
[1721776220402,4.54551006,66101.0,66100.0,36.42686411]
[1721776220607,4.55951006,66101.0,66100.0,36.42686411]
[1721776222677,4.48752924,66101.0,66100.0,36.42686411]
[1721776222893,4.56153047,66101.0,66100.0,36.42686411]
[1721776223555,4.56153047,66101.0,66100.0,36.37273412]
[1721776223771,4.56153047,66101.0,66100.0,36.33557898]
[1721776224326,4.56153047,66101.0,66100.0,36.27986898]
[1721776224535,4.56153047,66101.0,66100.0,36.19746898]
[1721776226081,4.55974391,66101.0,66100.0,36.19746898]
[1721776227391,4.55974391,66101.0,66100.0,36.12656898]
[1721776228357,2.17139626,66101.0,66100.0,36.25047027]
[1721776228509,2.87139626,66101.0,66100.0,36.25047027]
[1721776229621,2.85739626,66101.0,66100.0,36.25047027]
[1721776229832,2.88039626,66101.0,66100.0,36.25047027]
[1721776230037,2.89439626,66101.0,66100.0,36.25047027]
[1721776230451,3.04135891,66101.0,66100.0,36.25047027]
[1721776231132,2.89439626,66101.0,66100.0,36.25047027]
[1721776231550,2.19439626,66101.0,66100.0,36.25047027]
[1721776231765,2.49182926,66101.0,66100.0,36.25047027]
[1721776231954,1.76882926,66101.0,66100.0,36.25047027]
[1721776232160,1.70817126,66101.0,66100.0,36.25047027]
[1721776232384,1.68444361,66101.0,66100.0,36.25047027]
[1721776232588,1.67949653,66101.0,66100.0,36.25047027]
[1721776233002,1.37692953,66101.0,66100.0,36.25047027]
[1721776233229,0.92307953,66101.0,66100.0,36.25047027]
[1721776233433,1.07436253,66101.0,66100.0,36.25047027]
[1721776233657,1.00852262,66101.0,66100.0,36.25047027]
[1721776233857,1.00852262,66101.0,66100.0,36.30047027]
[1721776234150,1.02252262,66101.0,66100.0,36.30047027]
[1721776234319,1.00852262,66101.0,66100.0,36.25047027]
[1721776234521,0.99452262,66101.0,66100.0,36.25047027]
[1721776234826,0.61453759,66101.0,66100.0,36.30047027]
[1721776235027,0.60053759,66101.0,66100.0,36.30047027]
[1721776235229,0.90310459,66101.0,66100.0,36.30047027]
[1721776235447,0.61453759,66101.0,66100.0,36.30047027]
[1721776235708,0.68113759,66101.0,66100.0,36.30047027]
[1721776235898,0.99756852,66101.0,66100.0,36.30047027]
[1721776236099,0.98356852,66101.0,66100.0,36.30047027]
[1721776236391,0.96956852,66101.0,66100.0,36.30047027]
[1721776236597,0.96668843,66101.0,66100.0,36.30047027]
[1721776236792,0.98068843,66101.0,66100.0,36.30047027]
[1721776237404,0.37555443,66101.0,66100.0,36.25047027]
[1721776237548,0.37555443,66101.0,66100.0,36.30047027]
[1721776237962,0.38955443,66101.0,66100.0,36.30047027]
[1721776238638,0.09125152,66101.0,66100.0,36.37565224]
[1721776239039,0.22724291,66101.0,66100.0,36.37565224]
[1721776239236,0.25388097,66101.0,66100.0,36.37565224]
[1721776239695,0.10259797,66101.0,66100.0,36.37565224]
[1721776241880,0.00084,66118.0,66109.0,0.05]
[1721776242052,0.00084,66118.0,66112.0,0.1962]
[1721776242053,0.453768,66113.0,66112.0,0.1962]
[1721776242382,0.97639685,66113.0,66112.0,0.1962]
[1721776243789,0.99039685,66113.0,66112.0,0.1962]
[1721776244186,0.99039685,66113.0,66112.0,0.1462]
[1721776244780,1.31772688,66113.0,66112.0,0.1462]
[1721776245146,1.32872688,66113.0,66112.0,0.1472]
[1721776245685,1.30562994,66113.0,66112.0,0.1472]
[1721776245883,1.32516221,66113.0,66112.0,0.1472]
[1721776248772,1.49512486,66113.0,66112.0,0.1472]
[1721776248981,1.34816221,66113.0,66112.0,0.1472]
[1721776249184,1.34839547,66113.0,66112.0,0.1472]
[1721776251552,1.32539547,66113.0,66112.0,0.1472]
[1721776252095,1.32539547,66113.0,66112.0,0.1972]
[1721776252304,1.30217206,66113.0,66112.0,0.1972]
[1721776253741,1.32699009,66113.0,66112.0,0.1972]
[1721776254705,1.30217206,66113.0,66112.0,0.1972]
[1721776254877,0.99966006,66113.0,66112.0,0.1972]
[1721776255747,0.2437232,66113.0,66112.0,0.1972]
[1721776255907,0.32327591,66113.0,66112.0,0.1972]
[1721776256080,0.62578791,66113.0,66112.0,0.1972]
[1721776256471,0.32327591,66113.0,66112.0,0.1972]
[1721776257331,0.025,66113.0,66112.0,0.27238197]
[1721776258459,0.025,66113.0,66112.0,0.1972]
[1721776258460,0.95104154,66113.0,66112.0,0.1972]
[1721776259175,0.95104486,66113.0,66112.0,0.1972]
[1721776259394,0.9507532,66113.0,66112.0,0.1972]
[1721776259608,1.0007532,66113.0,66112.0,0.1972]
[1721776260053,0.6982412,66113.0,66112.0,0.1972]
[1721776261113,1.0007532,66113.0,66112.0,0.1972]
[1721776261324,1.0007532,66113.0,66112.0,0.001]
[1721776261325,1.32808323,66113.0,66112.0,0.001]
[1721776261679,1.3864623,66113.0,66112.0,0.001]
[1721776261881,1.3864629,66113.0,66112.0,0.001]
[1721776262205,1.30562994,66113.0,66112.0,0.001]
[1721776262399,1.3863139,66113.0,66112.0,0.001]
[1721776263246,2.0863139,66113.0,66112.0,0.001]
[1721776263451,1.3863139,66113.0,66112.0,0.001]
[1721776263778,2.0863139,66113.0,66112.0,0.001]
[1721776264750,1.3863139,66113.0,66112.0,0.001]
[1721776264953,2.0863139,66113.0,66112.0,0.001]
[1721776265202,1.3863139,66113.0,66112.0,0.001]
[1721776265606,2.0863139,66113.0,66112.0,0.001]
[1721776265811,2.1518139,66113.0,66112.0,0.001]
[1721776266324,2.0863139,66113.0,66112.0,0.001]
[1721776267569,2.5542259,66113.0,66112.0,0.001]
[1721776267773,2.6542259,66113.0,66112.0,0.001]
[1721776268232,2.9567379,66113.0,66112.0,0.001]
[1721776268405,2.6542259,66113.0,66112.0,0.001]
[1721776268853,2.57354194,66113.0,66112.0,0.001]
[1721776269053,2.62906369,66113.0,66112.0,0.001]
[1721776269258,2.77602634,66113.0,66112.0,0.001]
[1721776269476,2.62906369,66113.0,66112.0,0.001]
[1721776269885,2.62906369,66113.0,66112.0,0.1423]
[1721776269886,1.63884566,66113.0,66112.0,0.1423]
[1721776270090,1.36115169,66113.0,66112.0,0.1423]
[1721776270291,1.31505941,66113.0,66112.0,0.1423]
[1721776270445,1.36109723,66113.0,66112.0,0.1423]
[1721776272064,1.30562994,66113.0,66112.0,0.1423]
[1721776272273,1.36521938,66113.0,66112.0,0.1423]
[1721776275260,1.34040135,66113.0,66112.0,0.1423]
[1721776275464,1.34040135,66113.0,66112.0,0.1923]
[1721776275604,1.34030256,66113.0,66112.0,0.1923]
[1721776275856,1.29226188,66113.0,66112.0,0.1423]
[1721776276476,1.42523787,66113.0,66112.0,0.1423]
[1721776276709,1.66533576,66113.0,66112.0,0.001]
[1721776276880,1.38582376,66113.0,66112.0,0.001]
[1721776277428,1.68833576,66113.0,66112.0,0.001]
[1721776277563,1.53278641,66113.0,66112.0,0.001]
[1721776278466,1.83529841,66113.0,66112.0,0.001]
[1721776278913,1.77810459,66113.0,66112.0,0.001]
[1721776279089,1.83319277,66113.0,66112.0,0.001]
[1721776285566,1.63114194,66113.0,66112.0,0.001]
[1721776285782,1.68604181,66113.0,66112.0,0.001]
[1721776288950,1.63114194,66113.0,66112.0,0.001]
[1721776289202,1.68620752,66113.0,66112.0,0.001]
[1721776292397,1.68622338,66113.0,66112.0,0.001]